[Event "3rd FIDE WCCC Rapid U12 2019"]
[Site "Minsk"]
[Date "2019.08.16"]
[Round "1.1"]
[White "Cherniaiev, Tykhon"]
[Black "Barnett-Harris, Lucas"]
[Result "1-0"]
[ECO "B24"]
[WhiteElo "2112"]
[BlackElo "1295"]
[Annotator "ChessBase"]
[PlyCount "107"]
[EventDate "2019.08.16"]
[EventType "swiss"]
[EventCountry "BLR"]
[SourceTitle "playchess.com"]
[Source "ChessBase"]
[SourceQuality "1"]
[TimeControl "600+5"]

1. e4 {[%emt 0:00:00]} c5 {[%emt 0:00:00]} 2. Nc3 {[%emt 0:00:00]} Nc6 {[%emt 0:00:18]} 3. Bb5 {[%emt 0:00:02]} e6 {[%emt 0:00:59]} 4. Nge2 {[%emt 0:00:45]} Nge7 {[%emt 0:00:26]} 5. O-O {[%emt 0:00:47]} g6 {[%emt 0:00:41]} 6. d3 {[%emt 0:00:14]} Bg7 {[%emt 0:00:21]} 7. Be3 {[%emt 0:01:12]} b6 {[%emt 0:01:35]} 8. Qd2 {[%emt 0:00:27]} O-O {[%emt 0:00:14]} 9. Bh6 {[%emt 0:00:14]} Bb7 {[%emt 0:00:27]} 10. Bxg7 {[%emt 0:00:13]} Kxg7 {[%emt 0:00:05]} 11. Rad1 {[%emt 0:01:37]} d5 {[%emt 0:00:55]} 12. exd5 {[%emt 0:00:10]} Nxd5 {[%emt 0:00:19]} 13. Ne4 Nf6 14. Qf4 {[%emt 0:02:30]} Nd5 {[%emt 0:01:35]} 15. Qg3 {[%emt 0:00:05]} Rc8 {[%emt 0:00:38]} 16. Nd6 {[%emt 0:00:02]} Qc7 {[%emt 0:01:05]} 17. Nxc8 {[%emt 0:00:12]} Qxg3 {[%emt 0:00:14]} 18. hxg3 {[%emt 0:00:20]} Rxc8 {[%emt 0:00:02]} 19. a3 {[%emt 0:00:05]} Rd8 {[%emt 0:00:23]} 20. Rfe1 {[%emt 0:00:05]} Nde7 {[%emt 0:00:04]} 21. c3 {[%emt 0:00:10]} Nf5 {[%emt 0:00:09]} 22. Bxc6 {[%emt 0:00:04]} Bxc6 {[%emt 0:00:02]} 23. d4 {[%emt 0:00:03]} cxd4 {[%emt 0:00:10]} 24. Nxd4 {[%emt 0:00:02]} Nxd4 {[%emt 0:00:08]} 25. Rxd4 {[%emt 0:00:02]} Rxd4 {[%emt 0:00:01]} 26. cxd4 {[%emt 0:00:01]} Bd5 {[%emt 0:00:06]} 27. Rc1 {[%emt 0:00:01]} a6 {[%emt 0:00:17]} 28. Rc7 {[%emt 0:00:02]} a5 {[%emt 0:00:13]} 29. Ra7 {[%emt 0:00:16]} Bc4 {[%emt 0:00:39]} 30. f3 {[%emt 0:00:05]} Bb3 {[%emt 0:00:03]} 31. Rb7 {[%emt 0:00:03]} a4 {[%emt 0:00:03]} 32. Rxb6 {[%emt 0:00:01]} h6 {[%emt 0:00:03]} 33. Rxb3 {[%emt 0:00:13]} axb3 {[%emt 0:00:01]} 34. a4 {[%emt 0:00:01]} Kf8 {[%emt 0:00:01]} 35. a5 {[%emt 0:00:03]} Ke7 {[%emt 0:00:01]} 36. a6 {[%emt 0:00:00]} Kd7 {[%emt 0:00:01]} 37. a7 {[%emt 0:00:01]} Kc7 {[%emt 0:00:02]} 38. a8=Q {[%emt 0:00:02]} h5 {[%emt 0:00:02]} 39. Qf8 {[%emt 0:00:00]} Kc6 {[%emt 0:00:02]} 40. Qxf7 {[%emt 0:00:00]} Kd5 {[%emt 0:00:01]} 41. Qf6 {[%emt 0:00:00]} Kc4 {[%emt 0:00:06]} 42. Qxe6+ {[%emt 0:00:00]} Kxd4 {[%emt 0:00:02]} 43. Qxb3 {[%emt 0:00:00]} Kc5 {[%emt 0:00:01]} 44. Qe6 {[%emt 0:00:00]} Kb4 {[%emt 0:00:02]} 45. Kf2 {[%emt 0:00:00]} Kc5 {[%emt 0:00:01]} 46. Ke3 {[%emt 0:00:00]} g5 {[%emt 0:00:02]} 47. Qe5+ {[%emt 0:00:00]} Kc6 {[%emt 0:00:01]} 48. Kd4 {[%emt 0:00:00]} Kb6 {[%emt 0:00:02]} 49. Kc4 {[%emt 0:00:00]} Kc6 {[%emt 0:00:02]} 50. Qe6+ {[%emt 0:00:00]} Kc7 {[%emt 0:00:02]} 51. Kc5 {[%emt 0:00:00]} Kb7 {[%emt 0:00:01]} 52. Qd7+ {[%emt 0:00:00]} Kb8 {[%emt 0:00:06]} 53. Kb6 {[%emt 0:00:00]} Ka8 {[%emt 0:00:01]} 54. Qc8# {[%emt 0:00:00]} 1-0

[Event "3rd FIDE WCCC Rapid U12 2019"]
[Site "Minsk"]
[Date "2019.08.16"]
[Round "1.3"]
[White "Mochalov, Dmitriy"]
[Black "Gizunov, Stepan"]
[Result "1-0"]
[ECO "C62"]
[WhiteElo "1852"]
[BlackElo "1349"]
[Annotator "NA"]
[PlyCount "65"]
[EventDate "2019.08.16"]
[EventType "swiss"]
[EventCountry "BLR"]
[SourceTitle "playchess.com"]
[Source "ChessBase"]
[SourceQuality "1"]
[TimeControl "600+5"]

1. e4 {[%emt 0:00:00]} e5 {[%emt 0:00:00]} 2. Nf3 {[%emt 0:00:04]} Nc6 {[%emt 0:00:03]} 3. Bb5 {[%emt 0:00:04]} d6 {[%emt 0:00:24]} 4. c3 {[%emt 0:00:02]} Nf6 {[%emt 0:00:05]} 5. O-O {[%emt 0:00:05]} Be7 {[%emt 0:00:07]} 6. Re1 {[%emt 0:00:02]} O-O {[%emt 0:00:05]} 7. h3 {[%emt 0:00:02]} a6 {[%emt 0:00:10]} 8. Ba4 {[%emt 0:00:01]} b5 {[%emt 0:00:36]} 9. Bc2 {[%emt 0:00:04]} Bb7 {[%emt 0:00:20]} 10. d4 {[%emt 0:00:03]} exd4 {[%emt 0:00:37]} 11. Nxd4 {[%emt 0:00:01]} Nxd4 {[%emt 0:00:14]} 12. cxd4 {[%emt 0:00:01]} c6 {[%emt 0:01:33]} 13. Nd2 {[%emt 0:00:04]} Qb6 {[%emt 0:00:50]} 14. Nf3 {[%emt 0:00:07]} Rfe8 {[%emt 0:00:26]} 15. Bg5 {[%emt 0:00:18]} h6 {[%emt 0:00:03]} 16. Bf4 {[%emt 0:00:34]} Rad8 {[%emt 0:00:20]} 17. Qd3 {[%emt 0:03:14]} d5 {[%emt 0:01:54]} 18. e5 {[%emt 0:00:04]} Ne4 {[%emt 0:00:09]} 19. Nd2 {[%emt 0:00:09]} f5 {[%emt 0:00:42]} 20. exf6 {[%emt 0:00:17]} Bxf6 {[%emt 0:00:10]} 21. Nxe4 {[%emt 0:00:04]} dxe4 22. Rxe4 {[%emt 0:00:25]} Rxe4 {[%emt 0:00:30]} 23. Qxe4 {[%emt 0:00:01]} Qxd4 {[%emt 0:00:21]} 24. Qh7+ {[%emt 0:00:19]} Kf8 {[%emt 0:00:22]} 25. Bb3 {[%emt 0:01:10]} Rd7 {[%emt 0:01:11]} 26. Qg8+ {[%emt 0:00:04]} Ke7 {[%emt 0:00:06]} 27. Re1+ {[%emt 0:00:01]} Be5 {[%emt 0:00:22]} 28. Rxe5+ {[%emt 0:00:07]} Qxe5 {[%emt 0:00:09]} 29. Bxe5 {[%emt 0:00:01]} c5 {[%emt 0:00:13]} 30. Qxg7+ {[%emt 0:00:26]} Ke8 {[%emt 0:00:02]} 31. Qg6+ {[%emt 0:00:21]} Ke7 {[%emt 0:00:06]} 32. Qf7+ {[%emt 0:00:05]} Kd8 {[%emt 0:00:07]} 33. Qf8# {[%emt 0:00:01]} 1-0

[Event "3rd FIDE WCCC Rapid U12 2019"]
[Site "Minsk"]
[Date "2019.08.16"]
[Round "1.4"]
[White "Krukouski, Serafim"]
[Black "Israfilov, Ali"]
[Result "0-1"]
[ECO "B40"]
[WhiteElo "1366"]
[BlackElo "1857"]
[Annotator "NA"]
[PlyCount "62"]
[EventDate "2019.08.16"]
[EventType "swiss"]
[EventCountry "BLR"]
[SourceTitle "playchess.com"]
[Source "ChessBase"]
[SourceQuality "1"]
[TimeControl "600+5"]

1. e4 {[%emt 0:00:00]} c5 {[%emt 0:00:00]} 2. Nf3 {[%emt 0:00:02]} e6 {[%emt 0:00:00]} 3. c3 {[%emt 0:00:07]} d5 {[%emt 0:00:01]} 4. exd5 {[%emt 0:00:07]} Qxd5 {[%emt 0:00:03]} 5. d4 {[%emt 0:00:12]} Nf6 {[%emt 0:00:03]} 6. Bb5+ {[%emt 0:00:34]} Bd7 {[%emt 0:00:10]} 7. Bxd7+ {[%emt 0:00:06]} Nbxd7 {[%emt 0:00:28]} 8. O-O {[%emt 0:00:07]} Be7 {[%emt 0:00:11]} 9. dxc5 {[%emt 0:00:25]} Bxc5 {[%emt 0:00:08]} 10. Bf4 {[%emt 0:00:32]} O-O {[%emt 0:00:24]} 11. Nbd2 {[%emt 0:00:34]} e5 {[%emt 0:01:02]} 12. Bg3 {[%emt 0:00:16]} e4 {[%emt 0:00:09]} 13. Ne1 {[%emt 0:00:21]} e3 {[%emt 0:00:08]} 14. fxe3 {[%emt 0:00:15]} Bxe3+ {[%emt 0:00:01]} 15. Rf2 {[%emt 0:00:28]} Bxf2+ {[%emt 0:00:50]} 16. Bxf2 {[%emt 0:00:02]} Rfe8 {[%emt 0:00:14]} 17. c4 {[%emt 0:00:17]} Qf5 {[%emt 0:00:11]} 18. Ndf3 {[%emt 0:00:19]} Ne5 {[%emt 0:00:40]} 19. Qb3 {[%emt 0:00:30]} b6 {[%emt 0:00:11]} 20. Rd1 {[%emt 0:00:22]} Rad8 {[%emt 0:00:21]} 21. Rxd8 {[%emt 0:00:16]} Rxd8 {[%emt 0:00:01]} 22. Qa4 {[%emt 0:00:20]} Nxf3+ {[%emt 0:00:36]} 23. Nxf3 {[%emt 0:00:08]} Qb1+ {[%emt 0:00:31]} 24. Be1 {[%emt 0:00:16]} Re8 {[%emt 0:00:23]} 25. Kf2 {[%emt 0:00:31]} Qxb2+ {[%emt 0:00:10]} 26. Bd2 {[%emt 0:00:08]} Rd8 {[%emt 0:00:06]} 27. Ke2 {[%emt 0:00:28]} Ne4 {[%emt 0:00:04]} 28. Qb4 {[%emt 0:01:17]} Rxd2+ {[%emt 0:00:04]} 29. Nxd2 {[%emt 0:00:10]} Qxb4 {[%emt 0:00:01]} 30. Nxe4 {[%emt 0:00:02]} Qxc4+ {[%emt 0:00:01]} 31. Ke3 {[%emt 0:00:01]} Qxa2 {[%emt 0:00:01]} 0-1

[Event "3rd FIDE WCCC Rapid U12 2019"]
[Site "Minsk"]
[Date "2019.08.16"]
[Round "1.5"]
[White "Tobak, Mikhail"]
[Black "Shkurdiuk, Timofei"]
[Result "1-0"]
[ECO "A05"]
[WhiteElo "1998"]
[BlackElo "1366"]
[Annotator "NA"]
[PlyCount "49"]
[EventDate "2019.08.16"]
[EventType "swiss"]
[EventCountry "BLR"]
[SourceTitle "playchess.com"]
[Source "ChessBase"]
[SourceQuality "1"]
[TimeControl "600+5"]

1. Nf3 {[%emt 0:00:00]} Nf6 {[%emt 0:00:00]} 2. g3 {[%emt 0:00:00]} g6 {[%emt 0:00:00]} 3. Bg2 {[%emt 0:00:00]} Bg7 4. d3 O-O 5. e4 d6 {[%emt 0:00:09]} 6. O-O {[%emt 0:00:05]} e5 {[%emt 0:00:01]} 7. Nc3 {[%emt 0:00:01]} Nc6 {[%emt 0:00:13]} 8. Ne1 {[%emt 0:00:02]} Bg4 {[%emt 0:00:16]} 9. f3 {[%emt 0:00:02]} Be6 {[%emt 0:00:01]} 10. f4 {[%emt 0:00:02]} Nd4 {[%emt 0:00:52]} 11. Nf3 {[%emt 0:00:29]} Bg4 {[%emt 0:00:10]} 12. Qd2 {[%emt 0:00:06]} Nxf3+ {[%emt 0:00:13]} 13. Bxf3 {[%emt 0:00:02]} Bxf3 {[%emt 0:00:19]} 14. Rxf3 {[%emt 0:00:02]} Nd7 {[%emt 0:00:27]} 15. f5 {[%emt 0:00:07]} c6 {[%emt 0:00:33]} 16. Qg2 {[%emt 0:00:37]} h6 {[%emt 0:01:19]} 17. h4 {[%emt 0:00:22]} Qe7 {[%emt 0:00:55]} 18. Bd2 {[%emt 0:00:15]} Kh7 {[%emt 0:00:38]} 19. Raf1 {[%emt 0:00:07]} Rad8 {[%emt 0:03:33]} 20. g4 {[%emt 0:01:01]} g5 {[%emt 0:00:34]} 21. hxg5 {[%emt 0:00:17]} hxg5 {[%emt 0:00:01]} 22. Qh3+ {[%emt 0:00:43]} Kg8 23. f6 Bxf6 24. Rxf6 Nxf6 25. Bxg5 1-0

[Event "3rd FIDE WCCC Rapid U12 2019"]
[Site "Minsk"]
[Date "2019.08.16"]
[Round "1.6"]
[White "Kisko, Saveli"]
[Black "Navumenka, Mikhei"]
[Result "0-1"]
[ECO "B15"]
[WhiteElo "1365"]
[BlackElo "2148"]
[Annotator "ChessBase"]
[PlyCount "166"]
[EventDate "2019.08.16"]
[EventType "swiss"]
[EventCountry "BLR"]
[SourceTitle "playchess.com"]
[Source "ChessBase"]
[SourceQuality "1"]
[TimeControl "600+5"]

1. e4 {[%emt 0:00:00]} c6 {[%emt 0:00:00]} 2. d4 {[%emt 0:00:00]} d5 {[%emt 0:00:00]} 3. Nc3 {[%emt 0:00:00]} dxe4 {[%emt 0:00:00]} 4. Nxe4 {[%emt 0:00:00]} Nf6 {[%emt 0:00:04]} 5. Nxf6+ {[%emt 0:00:05]} exf6 {[%emt 0:00:01]} 6. Nf3 {[%emt 0:00:02]} Bd6 {[%emt 0:00:01]} 7. c3 {[%emt 0:00:05]} O-O {[%emt 0:00:02]} 8. Be2 {[%emt 0:00:04]} Bf5 {[%emt 0:00:16]} 9. O-O {[%emt 0:00:02]} Nd7 {[%emt 0:00:01]} 10. a3 {[%emt 0:00:10]} h6 {[%emt 0:00:04]} 11. Be3 {[%emt 0:00:25]} Re8 {[%emt 0:00:01]} 12. Bd3 {[%emt 0:00:05]} Bxd3 {[%emt 0:00:20]} 13. Qxd3 {[%emt 0:00:02]} c5 {[%emt 0:00:07]} 14. dxc5 {[%emt 0:00:21]} Nxc5 {[%emt 0:00:33]} 15. Qe2 {[%emt 0:00:59]} Qc7 {[%emt 0:00:09]} 16. h3 {[%emt 0:00:18]} a6 {[%emt 0:00:59]} 17. Nd4 {[%emt 0:00:40]} Bf4 {[%emt 0:01:40]} 18. Bxf4 {[%emt 0:01:15]} Qxf4 {[%emt 0:00:01]} 19. Qf3 {[%emt 0:00:09]} Qxf3 {[%emt 0:00:16]} 20. Nxf3 {[%emt 0:00:06]} Re2 {[%emt 0:00:01]} 21. b4 {[%emt 0:00:02]} Na4 {[%emt 0:00:54]} 22. Nd4 {[%emt 0:00:12]} Rd2 {[%emt 0:00:12]} 23. Rfc1 {[%emt 0:00:39]} Rc8 {[%emt 0:00:28]} 24. b5 {[%emt 0:00:51]} Nxc3 {[%emt 0:00:08]} 25. Nf3 {[%emt 0:01:03]} Ne2+ {[%emt 0:00:34]} 26. Kf1 {[%emt 0:00:12]} Nxc1 {[%emt 0:01:00]} 27. Nxd2 {[%emt 0:00:15]} axb5 {[%emt 0:00:02]} 28. Ne4 {[%emt 0:00:25]} Nb3 {[%emt 0:00:16]} 29. Rb1 {[%emt 0:00:19]} Nd4 {[%emt 0:00:27]} 30. Nd6 {[%emt 0:00:24]} Rc5 {[%emt 0:00:19]} 31. Nxb7 {[%emt 0:00:18]} Rc3 {[%emt 0:00:06]} 32. Nd6 {[%emt 0:00:16]} Rc5 {[%emt 0:00:03]} 33. Ne4 {[%emt 0:00:24]} Re5 {[%emt 0:00:08]} 34. Nc3 {[%emt 0:00:03]} f5 {[%emt 0:00:10]} 35. Kg1 {[%emt 0:00:45]} Rc5 {[%emt 0:00:04]} 36. Na2 {[%emt 0:00:16]} Rc4 {[%emt 0:00:20]} 37. Nb4 {[%emt 0:00:16]} Rc3 {[%emt 0:00:16]} 38. Nd5 {[%emt 0:00:24]} Rxa3 {[%emt 0:00:04]} 39. Kf1 {[%emt 0:00:03]} g6 {[%emt 0:00:05]} 40. Ke1 {[%emt 0:00:03]} Kg7 {[%emt 0:00:02]} 41. Kd2 {[%emt 0:00:06]} g5 {[%emt 0:00:13]} 42. Nc3 {[%emt 0:00:09]} Ra5 {[%emt 0:00:13]} 43. Kd3 {[%emt 0:00:10]} Ne6 {[%emt 0:00:01]} 44. Nxb5 {[%emt 0:00:09]} Nf4+ {[%emt 0:00:03]} 45. Kd4 {[%emt 0:00:27]} Nxg2 {[%emt 0:00:06]} 46. Nc3 {[%emt 0:00:14]} Nf4 {[%emt 0:00:05]} 47. Rh1 {[%emt 0:00:10]} Kg6 {[%emt 0:00:11]} 48. h4 {[%emt 0:00:14]} Ne6+ {[%emt 0:00:06]} 49. Ke3 {[%emt 0:00:04]} Ra3 {[%emt 0:00:01]} 50. Kd2 {[%emt 0:00:03]} g4 {[%emt 0:00:12]} 51. h5+ {[%emt 0:00:04]} Kg5 {[%emt 0:00:02]} 52. Kc2 {[%emt 0:00:11]} Nf4 {[%emt 0:00:04]} 53. Kb2 {[%emt 0:00:07]} Ra6 {[%emt 0:00:08]} 54. f3 {[%emt 0:00:02]} Nxh5 {[%emt 0:00:04]} 55. fxg4 {[%emt 0:00:01]} fxg4 {[%emt 0:00:01]} 56. Ne4+ {[%emt 0:00:03]} Kg6 {[%emt 0:00:04]} 57. Rh4 {[%emt 0:00:13]} f5 {[%emt 0:00:01]} 58. Nc3 {[%emt 0:00:04]} Kg5 {[%emt 0:00:02]} 59. Rh1 {[%emt 0:00:02]} Nf4 {[%emt 0:00:03]} 60. Rg1 {[%emt 0:00:05]} h5 {[%emt 0:00:02]} 61. Kc2 {[%emt 0:00:03]} Rc6 {[%emt 0:00:01]} 62. Kd2 {[%emt 0:00:02]} Rxc3 {[%emt 0:00:03]} 63. Kxc3 {[%emt 0:00:02]} Ne2+ {[%emt 0:00:01]} 64. Kd2 {[%emt 0:00:01]} Nxg1 {[%emt 0:00:02]} 65. Ke1 {[%emt 0:00:01]} h4 {[%emt 0:00:02]} 66. Kf2 {[%emt 0:00:01]} g3+ {[%emt 0:00:02]} 67. Kxg1 {[%emt 0:00:02]} Kg4 {[%emt 0:00:01]} 68. Kg2 {[%emt 0:00:01]} h3+ {[%emt 0:00:01]} 69. Kf1 {[%emt 0:00:00]} Kf3 {[%emt 0:00:06]} 70. Ke1 {[%emt 0:00:02]} g2 {[%emt 0:00:01]} 71. Kd2 {[%emt 0:00:01]} g1=Q {[%emt 0:00:02]} 72. Kc3 {[%emt 0:00:01]} Qd1 {[%emt 0:00:02]} 73. Kc4 {[%emt 0:00:01]} Ke4 {[%emt 0:00:02]} 74. Kc3 {[%emt 0:00:01]} Qc1+ {[%emt 0:00:01]} 75. Kb4 {[%emt 0:00:02]} Kd4 {[%emt 0:00:01]} 76. Kb5 {[%emt 0:00:01]} Qc4+ {[%emt 0:00:05]} 77. Kb6 {[%emt 0:00:02]} Qd5 {[%emt 0:00:03]} 78. Ka6 {[%emt 0:00:03]} Qc5 {[%emt 0:00:02]} 79. Kb7 {[%emt 0:00:02]} Qd6 {[%emt 0:00:01]} 80. Kc8 {[%emt 0:00:02]} Qe7 {[%emt 0:00:01]} 81. Kb8 {[%emt 0:00:01]} Kc5 {[%emt 0:00:02]} 82. Kc8 {[%emt 0:00:01]} Kb6 {[%emt 0:00:01]} 83. Kb8 {[%emt 0:00:02]} Qd8# {[%emt 0:00:01]} 0-1

[Event "3rd FIDE WCCC Rapid U12 2019"]
[Site "Minsk"]
[Date "2019.08.16"]
[Round "2.1"]
[White "Gasanov, Vadim"]
[Black "Cherniaiev, Tykhon"]
[Result "0-1"]
[ECO "C60"]
[WhiteElo "1667"]
[BlackElo "2112"]
[Annotator "ChessBase"]
[PlyCount "112"]
[EventDate "2019.08.16"]
[EventType "swiss"]
[EventCountry "BLR"]
[SourceTitle "playchess.com"]
[Source "ChessBase"]
[SourceQuality "1"]
[TimeControl "600+5"]

1. e4 {[%emt 0:00:00]} e5 {[%emt 0:00:00]} 2. Nf3 {[%emt 0:00:00]} Nc6 {[%emt 0:00:11]} 3. Bb5 {[%emt 0:00:00]} g6 {[%emt 0:00:04]} 4. O-O {[%emt 0:00:02]} Bg7 {[%emt 0:00:02]} 5. c3 {[%emt 0:00:04]} Nge7 {[%emt 0:00:03]} 6. d4 {[%emt 0:00:11]} exd4 7. cxd4 {[%emt 0:00:01]} d5 {[%emt 0:00:03]} 8. exd5 {[%emt 0:00:16]} Nxd5 {[%emt 0:00:02]} 9. Re1+ {[%emt 0:00:14]} Be6 {[%emt 0:00:01]} 10. Ng5 {[%emt 0:01:04]} O-O {[%emt 0:00:04]} 11. Nxe6 {[%emt 0:00:35]} fxe6 {[%emt 0:00:02]} 12. Bxc6 {[%emt 0:00:15]} bxc6 {[%emt 0:00:02]} 13. Qg4 {[%emt 0:00:10]} Qf6 {[%emt 0:00:26]} 14. Qg3 {[%emt 0:01:33]} Qxd4 {[%emt 0:00:10]} 15. Nc3 {[%emt 0:00:24]} Nxc3 {[%emt 0:01:52]} 16. bxc3 {[%emt 0:00:02]} Qxc3 {[%emt 0:00:01]} 17. Be3 {[%emt 0:00:06]} Qa5 {[%emt 0:01:47]} 18. Rac1 {[%emt 0:00:32]} Rad8 {[%emt 0:00:15]} 19. Qg4 {[%emt 0:00:27]} Rfe8 {[%emt 0:02:02]} 20. Qc4 {[%emt 0:00:53]} Rd6 {[%emt 0:00:32]} 21. Bc5 {[%emt 0:00:50]} Rd5 {[%emt 0:00:20]} 22. Bb4 {[%emt 0:00:17]} Qb5 {[%emt 0:00:32]} 23. Qxc6 {[%emt 0:00:13]} Qxc6 {[%emt 0:00:01]} 24. Rxc6 {[%emt 0:00:00]} Be5 {[%emt 0:00:01]} 25. g3 {[%emt 0:00:50]} Kf7 {[%emt 0:00:14]} 26. f4 {[%emt 0:00:28]} Bd4+ {[%emt 0:00:04]} 27. Kg2 {[%emt 0:00:03]} Bb6 {[%emt 0:00:01]} 28. Rec1 {[%emt 0:00:37]} e5 {[%emt 0:01:10]} 29. fxe5 {[%emt 0:00:18]} Rexe5 {[%emt 0:00:29]} 30. Rf1+ {[%emt 0:00:02]} Rf5 {[%emt 0:00:02]} 31. Re1 {[%emt 0:00:46]} Rde5 {[%emt 0:00:18]} 32. Rd1 {[%emt 0:00:26]} Re2+ {[%emt 0:00:08]} 33. Kh3 {[%emt 0:00:02]} Rh5+ {[%emt 0:00:02]} 34. Kg4 {[%emt 0:00:06]} Re4+ {[%emt 0:00:02]} 35. Kf3 {[%emt 0:00:02]} Rxb4 {[%emt 0:00:03]} 36. Rd7+ {[%emt 0:00:03]} Ke8 {[%emt 0:00:09]} 37. Rd2 {[%emt 0:00:05]} Rf5+ {[%emt 0:00:11]} 38. Kg2 {[%emt 0:00:03]} Re4 {[%emt 0:00:08]} 39. h3 {[%emt 0:00:04]} Rfe5 {[%emt 0:00:05]} 40. Rcc2 {[%emt 0:00:02]} Ke7 {[%emt 0:00:07]} 41. g4 {[%emt 0:00:07]} h5 {[%emt 0:00:11]} 42. gxh5 {[%emt 0:00:02]} gxh5 {[%emt 0:00:01]} 43. Kg3 {[%emt 0:00:10]} Re3+ {[%emt 0:00:12]} 44. Kf4 {[%emt 0:00:02]} R3e4+ {[%emt 0:00:17]} 45. Kf3 {[%emt 0:00:05]} Rd4 {[%emt 0:00:07]} 46. Rxd4 Bxd4 47. Rxc7+ {[%emt 0:00:11]} Kd6 {[%emt 0:00:07]} 48. Rc4 {[%emt 0:00:06]} Kd5 {[%emt 0:00:03]} 49. Ra4 {[%emt 0:00:02]} Re3+ {[%emt 0:00:02]} 50. Kg2 {[%emt 0:00:05]} Ke4 {[%emt 0:00:02]} 51. Ra5 {[%emt 0:00:10]} h4 {[%emt 0:00:11]} 52. Rh5 {[%emt 0:00:03]} Re2+ {[%emt 0:00:01]} 53. Kf1 {[%emt 0:00:06]} Rxa2 {[%emt 0:00:07]} 54. Rxh4+ {[%emt 0:00:01]} Kf3 {[%emt 0:00:03]} 55. Rxd4 {[%emt 0:00:15]} Ra1+ {[%emt 0:00:01]} 56. Rd1 {[%emt 0:00:01]} Rxd1# {[%emt 0:00:01]} 0-1

[Event "3rd FIDE WCCC Rapid U12 2019"]
[Site "Minsk"]
[Date "2019.08.16"]
[Round "2.2"]
[White "Khubukshanov, Erdem"]
[Black "Baryschyk, Sergey"]
[Result "1-0"]
[ECO "B45"]
[WhiteElo "2257"]
[BlackElo "1773"]
[Annotator "RC"]
[PlyCount "179"]
[EventDate "2019.08.16"]
[EventType "swiss"]
[EventCountry "BLR"]
[SourceTitle "playchess.com"]
[Source "ChessBase"]
[SourceQuality "1"]
[TimeControl "600+5"]

1. e4 {[%emt 0:00:00]} c5 {[%emt 0:00:00]} 2. Nf3 {[%emt 0:00:00]} e6 {[%emt 0:00:00]} 3. d4 {[%emt 0:00:00]} cxd4 {[%emt 0:00:01]} 4. Nxd4 {[%emt 0:00:00]} Nf6 {[%emt 0:00:03]} 5. Nc3 {[%emt 0:00:00]} Nc6 {[%emt 0:00:03]} 6. Ndb5 {[%emt 0:00:14]} Bb4 {[%emt 0:00:03]} 7. Nd6+ {[%emt 0:00:05]} Ke7 {[%emt 0:00:02]} 8. Nxc8+ {[%emt 0:00:35]} Rxc8 {[%emt 0:00:05]} 9. Bd2 {[%emt 0:00:27]} Bxc3 {[%emt 0:01:22]} 10. Bxc3 {[%emt 0:00:03]} Nxe4 {[%emt 0:00:06]} 11. Bxg7 {[%emt 0:02:12]} Rg8 {[%emt 0:00:15]} 12. Bd3 {[%emt 0:01:53]} Qa5+ {[%emt 0:01:10]} 13. c3 {[%emt 0:00:44]} Rxg7 {[%emt 0:00:30]} 14. Bxe4 {[%emt 0:00:02]} Qe5 {[%emt 0:00:04]} 15. Qe2 {[%emt 0:00:07]} d5 {[%emt 0:00:39]} 16. Bf3 {[%emt 0:00:02]} Qxe2+ {[%emt 0:00:11]} 17. Kxe2 {[%emt 0:00:02]} Ne5 {[%emt 0:00:08]} 18. Rhd1 {[%emt 0:00:24]} a6 {[%emt 0:00:27]} 19. a4 {[%emt 0:00:22]} Nc4 {[%emt 0:00:23]} 20. Rab1 {[%emt 0:00:54]} Nb6 {[%emt 0:00:15]} 21. Rd4 {[%emt 0:00:42]} Rc4 {[%emt 0:00:34]} 22. Rxc4 {[%emt 0:00:18]} Nxc4 {[%emt 0:00:03]} 23. b3 {[%emt 0:00:04]} Ne5 {[%emt 0:00:26]} 24. g3 {[%emt 0:01:00]} Rg8 {[%emt 0:00:12]} 25. Bg2 {[%emt 0:00:53]} Rc8 {[%emt 0:00:11]} 26. Rc1 {[%emt 0:00:05]} Kf6 {[%emt 0:00:22]} 27. f4 {[%emt 0:00:12]} Nd7 {[%emt 0:00:16]} 28. Kd2 {[%emt 0:00:50]} Nc5 {[%emt 0:00:14]} 29. Rb1 {[%emt 0:00:01]} h5 {[%emt 0:00:18]} 30. Ke3 {[%emt 0:00:09]} h4 {[%emt 0:00:58]} 31. Kd4 {[%emt 0:00:01]} hxg3 {[%emt 0:00:07]} 32. hxg3 b6 {[%emt 0:00:03]} 33. Bf3 {[%emt 0:00:14]} Rg8 {[%emt 0:00:24]} 34. a5 {[%emt 0:00:06]} Rxg3 {[%emt 0:00:21]} 35. axb6 {[%emt 0:00:01]} Nd7 {[%emt 0:00:02]} 36. Be2 {[%emt 0:00:05]} Nxb6 {[%emt 0:00:27]} 37. Bxa6 {[%emt 0:00:08]} Rg4 {[%emt 0:00:46]} 38. Kc5 {[%emt 0:00:07]} Nd7+ {[%emt 0:00:03]} 39. Kd6 {[%emt 0:00:01]} Nf8 {[%emt 0:00:20]} 40. f5 {[%emt 0:00:08]} Kxf5 {[%emt 0:00:30]} 41. Rf1+ {[%emt 0:00:04]} Kg6 {[%emt 0:00:18]} 42. Ke7 {[%emt 0:00:06]} Nh7 {[%emt 0:00:19]} 43. Bd3+ {[%emt 0:00:03]} Kh6 {[%emt 0:00:03]} 44. Rh1+ {[%emt 0:00:03]} Kg5 {[%emt 0:00:05]} 45. Rxh7 {[%emt 0:00:01]} Kf4 {[%emt 0:00:01]} 46. Rxf7+ {[%emt 0:00:05]} Ke3 {[%emt 0:00:02]} 47. Bb5 {[%emt 0:00:10]} e5 {[%emt 0:00:12]} 48. Kd6 {[%emt 0:00:02]} d4 {[%emt 0:00:03]} 49. cxd4 exd4 {[%emt 0:00:02]} 50. Re7+ {[%emt 0:00:16]} Kd2 {[%emt 0:00:11]} 51. Kc5 {[%emt 0:00:01]} Kc3 {[%emt 0:00:11]} 52. Bc4 {[%emt 0:00:10]} Rg5+ {[%emt 0:00:09]} 53. Kb6 {[%emt 0:00:05]} Rg6+ {[%emt 0:00:02]} 54. Ka5 {[%emt 0:00:02]} Rg5+ {[%emt 0:00:14]} 55. Ka4 {[%emt 0:00:03]} Rg3 {[%emt 0:00:02]} 56. Rd7 {[%emt 0:00:02]} Rg1 {[%emt 0:00:02]} 57. Kb5 {[%emt 0:00:10]} Rg5+ {[%emt 0:00:01]} 58. Rd5 {[%emt 0:00:01]} Rg7 {[%emt 0:00:10]} 59. Kc5 {[%emt 0:00:06]} Rc7+ {[%emt 0:00:02]} 60. Kd6 {[%emt 0:00:01]} Rc8 {[%emt 0:00:04]} 61. Rc5 {[%emt 0:00:09]} Rd8+ {[%emt 0:00:05]} 62. Ke7 {[%emt 0:00:03]} Rh8 {[%emt 0:00:13]} 63. Bf7+ {[%emt 0:00:07]} Kd2 {[%emt 0:00:03]} 64. Bg6 {[%emt 0:00:09]} Rb8 {[%emt 0:00:13]} 65. Rc2+ {[%emt 0:00:08]} Ke3 66. Rb2 {[%emt 0:00:05]} d3 {[%emt 0:00:09]} 67. Kd6 {[%emt 0:00:04]} Rd8+ {[%emt 0:00:07]} 68. Kc5 {[%emt 0:00:02]} d2 {[%emt 0:00:01]} 69. Bh5 {[%emt 0:00:04]} Rc8+ {[%emt 0:00:06]} 70. Kd6 {[%emt 0:00:06]} Rd8+ {[%emt 0:00:04]} 71. Kc7 {[%emt 0:00:01]} d1=Q {[%emt 0:00:02]} 72. Bxd1 {[%emt 0:00:04]} Rxd1 {[%emt 0:00:01]} 73. b4 {[%emt 0:00:03]} Kd4 {[%emt 0:00:06]} 74. b5 {[%emt 0:00:02]} Rc1+ {[%emt 0:00:02]} 75. Kb6 {[%emt 0:00:01]} Kd5 {[%emt 0:00:06]} 76. Rd2+ {[%emt 0:00:04]} Ke6 {[%emt 0:00:02]} 77. Ka6 {[%emt 0:00:05]} Ra1+ {[%emt 0:00:01]} 78. Kb7 {[%emt 0:00:01]} Rb1 {[%emt 0:00:03]} 79. b6 {[%emt 0:00:01]} Rb3 {[%emt 0:00:04]} 80. Kc7 {[%emt 0:00:05]} Rc3+ {[%emt 0:00:02]} 81. Kb8 {[%emt 0:00:01]} Rb3 {[%emt 0:00:03]} 82. b7 {[%emt 0:00:05]} Rb1 {[%emt 0:00:01]} 83. Rd4 {[%emt 0:00:09]} Rb2 {[%emt 0:00:03]} 84. Kc7 {[%emt 0:00:05]} Rc2+ {[%emt 0:00:02]} 85. Kb6 {[%emt 0:00:02]} Rb2+ {[%emt 0:00:02]} 86. Kc6 {[%emt 0:00:03]} Rb1 {[%emt 0:00:09]} 87. Re4+ {[%emt 0:00:06]} Kf5 {[%emt 0:00:02]} 88. Re8 {[%emt 0:00:02]} Rc1+ {[%emt 0:00:01]} 89. Kd5 {[%emt 0:00:02]} Rd1+ {[%emt 0:00:04]} 90. Kc4 {[%emt 0:00:00]} 1-0